[Event "Live Chess"]
[Site "Chess.com"]
[Date "2024.06.02"]
[Round "-"]
[White "ACM42"]
[Black "Dhaydon19"]
[Result "0-1"]
[WhiteElo "2225"]
[BlackElo "2641"]
[TimeControl "300"]
[EndTime "5:30:57 PDT"]
[Termination "Dhaydon19 won by resignation"]

1. e4 {[%clk 0:04:56.5]} 1... e6 {[%clk 0:04:59.4]} 2. d4 {[%clk 0:04:55.3]}
2... d5 {[%clk 0:04:58.5]} 3. Nc3 {[%clk 0:04:52.4]} 3... dxe4 {[%clk
0:04:57.6]} 4. Nxe4 {[%clk 0:04:51.2]} 4... Nd7 {[%clk 0:04:57.3]} 5. Ne2 {[%clk
0:04:48.9]} 5... Ngf6 {[%clk 0:04:56.4]} 6. N2g3 {[%clk 0:04:48]} 6... Be7
{[%clk 0:04:54.6]} 7. Bd3 {[%clk 0:04:46.9]} 7... b6 {[%clk 0:04:52.5]} 8. O-O
{[%clk 0:04:45.8]} 8... Bb7 {[%clk 0:04:51]} 9. c3 {[%clk 0:04:44.3]} 9... O-O
{[%clk 0:04:48.6]} 10. Bg5 {[%clk 0:04:35]} 10... c5 {[%clk 0:04:42.2]} 11. dxc5
{[%clk 0:04:30.9]} 11... Nxc5 {[%clk 0:04:39]} 12. Nxc5 {[%clk 0:04:25.5]} 12...
bxc5 {[%clk 0:04:36.8]} 13. Qe2 {[%clk 0:04:18.2]} 13... Qd5 {[%clk 0:04:33.2]}
14. Ne4 {[%clk 0:04:01.1]} 14... Nxe4 {[%clk 0:04:26.7]} 15. Bxe7 {[%clk
0:03:59.6]} 15... Nxc3 {[%clk 0:04:22.3]} 16. Qg4 {[%clk 0:03:02.6]} 16... Qxd3
{[%clk 0:04:16.6]} 17. bxc3 {[%clk 0:03:00.8]} 17... Rfc8 {[%clk 0:04:10.4]} 18.
Bf6 {[%clk 0:02:31.9]} 18... Qg6 {[%clk 0:04:07.6]} 19. Qxg6 {[%clk 0:02:30.7]}
19... hxg6 {[%clk 0:04:06.4]} 20. Bg5 {[%clk 0:02:28.7]} 20... f6 {[%clk
0:04:05.3]} 21. Be3 {[%clk 0:02:26.4]} 21... Bd5 {[%clk 0:04:04.9]} 22. a4
{[%clk 0:02:23.4]} 22... Rab8 {[%clk 0:04:03]} 23. Rab1 {[%clk 0:02:22.5]} 23...
Rb6 {[%clk 0:03:56.9]} 24. Rxb6 {[%clk 0:02:14.9]} 24... axb6 {[%clk 0:03:55.2]}
25. Rb1 {[%clk 0:02:12.3]} 25... Rc6 {[%clk 0:03:53.6]} 26. Rb5 {[%clk
0:02:03.3]} 26... g5 {[%clk 0:03:49.2]} 27. h3 {[%clk 0:01:59]} 27... Bc4 {[%clk
0:03:45.3]} 28. Rb2 {[%clk 0:01:52.1]} 28... e5 {[%clk 0:03:41.6]} 29. g4 {[%clk
0:01:42.2]} 29... Rd6 {[%clk 0:03:39.4]} 30. Rd2 {[%clk 0:01:37.2]} 30... Rxd2
{[%clk 0:03:35.9]} 31. Bxd2 {[%clk 0:01:36.1]} 31... Bb3 {[%clk 0:03:35.2]} 32.
a5 {[%clk 0:01:23.4]} 32... bxa5 {[%clk 0:03:34.1]} 33. c4 {[%clk 0:01:21.1]}
33... a4 {[%clk 0:03:33.3]} 34. Bc1 {[%clk 0:01:20.2]} 34... Bxc4 {[%clk
0:03:32.2]} 35. Ba3 {[%clk 0:01:19.5]} 35... Kf7 {[%clk 0:03:31.4]} 36. Bxc5
{[%clk 0:01:17.7]} 36... Ke6 {[%clk 0:03:30.9]} 37. f3 {[%clk 0:01:14.3]} 37...
e4 {[%clk 0:03:25.1]} 38. fxe4 {[%clk 0:01:06.6]} 38... Ke5 {[%clk 0:03:24.3]}
39. Kf2 {[%clk 0:01:05.4]} 39... Kxe4 {[%clk 0:03:22.6]} 40. Bf8 {[%clk
0:00:53.8]} 40... g6 {[%clk 0:03:20.3]} 41. Bg7 {[%clk 0:00:48]} 41... f5 {[%clk
0:03:19.2]} 42. gxf5 {[%clk 0:00:45.3]} 42... gxf5 {[%clk 0:03:14]} 43. Kg3
{[%clk 0:00:42.5]} 43... f4+ {[%clk 0:03:10.8]} 44. Kf2 {[%clk 0:00:37.7]} 44...
Be6 {[%clk 0:03:09.2]} 45. Bf6 {[%clk 0:00:34.8]} 45... g4 {[%clk 0:03:05.1]}
46. hxg4 {[%clk 0:00:33.4]} 46... Bxg4 {[%clk 0:03:04.7]} 47. Bb2 {[%clk
0:00:26.6]} 47... Kd3 {[%clk 0:03:02.6]} 48. Ke1 {[%clk 0:00:21.4]} 48... Kc2
{[%clk 0:03:00.9]} 49. Be5 {[%clk 0:00:19]} 49... f3 {[%clk 0:02:59.9]} 50. Kf2
{[%clk 0:00:17.5]} 50... a3 {[%clk 0:02:57.2]} 51. Kg3 {[%clk 0:00:16.6]} 51...
a2 {[%clk 0:02:56.2]} 52. Bd4 {[%clk 0:00:15.3]} 52... Bh5 {[%clk 0:02:53.6]}
53. Kh4 {[%clk 0:00:13.8]} 53... f2 {[%clk 0:02:51.1]} 0-1

[Event "Live Chess"]
[Site "Chess.com"]
[Date "2024.06.02"]
[Round "-"]
[White "juniortay"]
[Black "IgorSchukin"]
[Result "1-0"]
[WhiteElo "2339"]
[BlackElo "1771"]
[TimeControl "300"]
[EndTime "5:31:17 PDT"]
[Termination "juniortay won by resignation"]

1. e4 {[%clk 0:04:57.8]} 1... c5 {[%clk 0:04:51.9]} 2. Nf3 {[%clk 0:04:56.9]}
2... e6 {[%clk 0:04:51.1]} 3. d4 {[%clk 0:04:56.2]} 3... cxd4 {[%clk 0:04:49.8]}
4. Bg5 {[%clk 0:04:55.6]} 4... Be7 {[%clk 0:04:48]} 5. Bxe7 {[%clk 0:04:54.6]}
5... Nxe7 {[%clk 0:04:47.7]} 6. Qxd4 {[%clk 0:04:54]} 6... Nbc6 {[%clk
0:04:46.2]} 7. Qd6 {[%clk 0:04:50.8]} 7... O-O {[%clk 0:04:44.5]} 8. Nc3 {[%clk
0:04:49.5]} 8... f5 {[%clk 0:04:38.3]} 9. e5 {[%clk 0:04:43]} 9... Ng6 {[%clk
0:04:28.9]} 10. O-O-O {[%clk 0:04:41.1]} 10... Qa5 {[%clk 0:04:27]} 11. Re1
{[%clk 0:04:33.1]} 11... Nb4 {[%clk 0:03:50.7]} 12. Kb1 {[%clk 0:04:29.3]} 12...
Nd5 {[%clk 0:03:36.4]} 13. Nxd5 {[%clk 0:04:25.4]} 13... exd5 {[%clk 0:03:34]}
14. Bd3 {[%clk 0:04:11.5]} 14... b6 {[%clk 0:03:16.7]} 15. Nd4 {[%clk 0:04:00]}
15... f4 {[%clk 0:03:06.5]} 16. Bxg6 {[%clk 0:03:53.6]} 16... hxg6 {[%clk
0:03:05]} 17. Qxg6 {[%clk 0:03:51.6]} 17... Qc5 {[%clk 0:02:49.3]} 18. Nf5
{[%clk 0:03:44.8]} 18... Rxf5 {[%clk 0:02:43.6]} 19. Qxf5 {[%clk 0:03:42.8]}
19... Qxf2 {[%clk 0:02:42]} 20. Rhf1 {[%clk 0:03:39.7]} 20... Qxg2 {[%clk
0:02:38.3]} 21. Rxf4 {[%clk 0:03:38.4]} 1-0

[Event "Live Chess"]
[Site "Chess.com"]
[Date "2024.06.02"]
[Round "-"]
[White "Pandreq"]
[Black "friarnator"]
[Result "0-1"]
[WhiteElo "1244"]
[BlackElo "2195"]
[TimeControl "300"]
[EndTime "5:31:20 PDT"]
[Termination "friarnator won by resignation"]

1. d4 {[%clk 0:04:55.3]} 1... Nf6 {[%clk 0:04:58.3]} 2. c4 {[%clk 0:04:54.1]}
2... b6 {[%clk 0:04:57.2]} 3. Nc3 {[%clk 0:04:53.2]} 3... Bb7 {[%clk 0:04:56.9]}
4. e3 {[%clk 0:04:51.5]} 4... e6 {[%clk 0:04:56.2]} 5. Nf3 {[%clk 0:04:50.4]}
5... Be7 {[%clk 0:04:55.9]} 6. g3 {[%clk 0:04:46.6]} 6... O-O {[%clk 0:04:55.5]}
7. Bg2 {[%clk 0:04:46.2]} 7... d6 {[%clk 0:04:55.2]} 8. O-O {[%clk 0:04:45.5]}
8... Nbd7 {[%clk 0:04:50.1]} 9. Bd2 {[%clk 0:04:41.4]} 9... a6 {[%clk 0:04:45]}
10. Ne2 {[%clk 0:04:39.8]} 10... c5 {[%clk 0:04:39.8]} 11. dxc5 {[%clk
0:04:33.8]} 11... Nxc5 {[%clk 0:04:39.7]} 12. b3 {[%clk 0:04:29.1]} 12... Nfe4
{[%clk 0:04:36.5]} 13. Nf4 {[%clk 0:04:22.9]} 13... Bf6 {[%clk 0:04:30.9]} 14.
Rb1 {[%clk 0:04:15.5]} 14... g6 {[%clk 0:04:28.1]} 15. Nd4 {[%clk 0:04:04.9]}
15... Nxd2 {[%clk 0:04:23.5]} 16. Qxd2 {[%clk 0:04:03.6]} 16... Bxg2 {[%clk
0:04:22.4]} 17. Kxg2 {[%clk 0:04:02.5]} 17... e5 {[%clk 0:04:21.2]} 18. Nc6
{[%clk 0:03:56.3]} 18... Qc8 {[%clk 0:04:13.1]} 19. Nd5 {[%clk 0:03:45.4]} 19...
Qxc6 {[%clk 0:04:11.4]} 20. f3 {[%clk 0:03:40.4]} 20... Bd8 {[%clk 0:04:09]} 21.
e4 {[%clk 0:03:36.9]} 21... Ne6 {[%clk 0:04:06.8]} 22. Qh6 {[%clk 0:03:33]}
22... Nc7 {[%clk 0:04:03]} 23. h4 {[%clk 0:03:23.6]} 23... Nxd5 {[%clk
0:04:00.8]} 24. exd5 {[%clk 0:03:23.2]} 24... Qd7 {[%clk 0:03:58.4]} 25. h5
{[%clk 0:03:21.3]} 25... Qf5 {[%clk 0:03:56.4]} 26. hxg6 {[%clk 0:03:19.4]}
26... fxg6 {[%clk 0:03:54.1]} 27. Rh1 {[%clk 0:03:17.4]} 27... Ra7 {[%clk
0:03:45.3]} 28. Rbf1 {[%clk 0:03:14]} 28... Bg5 {[%clk 0:03:40.6]} 29. Qh2
{[%clk 0:03:11.4]} 29... Be3 {[%clk 0:03:38.6]} 30. g4 {[%clk 0:03:07]} 30...
Qc2+ {[%clk 0:03:35]} 31. Kg3 {[%clk 0:03:02.2]} 31... Bf4+ {[%clk 0:03:33.8]}
0-1

[Event "Live Chess"]
[Site "Chess.com"]
[Date "2024.06.02"]
[Round "-"]
[White "Andriy_Yaremovych"]
[Black "nigelst"]
[Result "1-0"]
[WhiteElo "1652"]
[BlackElo "1725"]
[TimeControl "300"]
[EndTime "5:31:49 PDT"]
[Termination "Andriy_Yaremovych won by resignation"]

1. e4 {[%clk 0:04:58]} 1... c6 {[%clk 0:04:59.4]} 2. Nc3 {[%clk 0:04:57.9]} 2...
d5 {[%clk 0:04:58.3]} 3. f4 {[%clk 0:04:57.8]} 3... dxe4 {[%clk 0:04:49.6]} 4.
Nxe4 {[%clk 0:04:57.7]} 4... Nf6 {[%clk 0:04:48.1]} 5. Nxf6+ {[%clk 0:04:54.6]}
5... exf6 {[%clk 0:04:46.3]} 6. Nf3 {[%clk 0:04:54.5]} 6... Bc5 {[%clk
0:04:44.8]} 7. d4 {[%clk 0:04:48.3]} 7... Bb6 {[%clk 0:04:40.4]} 8. c3 {[%clk
0:04:46.9]} 8... Bg4 {[%clk 0:04:38.3]} 9. Be2 {[%clk 0:04:45.8]} 9... O-O
{[%clk 0:04:33.5]} 10. Qc2 {[%clk 0:04:44.3]} 10... Re8 {[%clk 0:04:28.5]} 11.
O-O {[%clk 0:04:42.9]} 11... g6 {[%clk 0:04:19.3]} 12. a4 {[%clk 0:04:41]} 12...
Bf5 {[%clk 0:04:17.9]} 13. Bd3 {[%clk 0:04:38.1]} 13... Bxd3 {[%clk 0:04:04.3]}
14. Qxd3 {[%clk 0:04:38]} 14... Qd5 {[%clk 0:04:00.4]} 15. b4 {[%clk 0:04:35.3]}
15... Qh5 {[%clk 0:03:56.1]} 16. c4 {[%clk 0:04:24.2]} 16... a5 {[%clk
0:03:53.1]} 17. c5 {[%clk 0:04:21.4]} 17... Bc7 {[%clk 0:03:52.1]} 18. b5 {[%clk
0:04:20]} 18... Nd7 {[%clk 0:03:41.4]} 19. b6 {[%clk 0:04:18.4]} 19... Bd8
{[%clk 0:03:36.6]} 20. Bb2 {[%clk 0:04:10.2]} 20... Be7 {[%clk 0:03:31.8]} 21.
Rae1 {[%clk 0:04:07.8]} 21... Rad8 {[%clk 0:03:29.3]} 22. h3 {[%clk 0:04:00.6]}
22... Nxc5 {[%clk 0:03:17.6]} 23. Qc4 {[%clk 0:03:55.2]} 23... Ne6 {[%clk
0:03:05.2]} 24. Nh2 {[%clk 0:03:43]} 24... Nxf4 {[%clk 0:02:56.5]} 25. Rxf4
{[%clk 0:03:34.8]} 25... Bd6 {[%clk 0:02:52.5]} 26. Rxe8+ {[%clk 0:03:34.6]}
26... Rxe8 {[%clk 0:02:50.8]} 27. Rxf6 {[%clk 0:03:28.7]} 27... Re1+ {[%clk
0:02:39.1]} 28. Nf1 {[%clk 0:03:26.6]} 28... Qg5 {[%clk 0:02:30.8]} 29. Qxf7+
{[%clk 0:03:24.4]} 29... Kh8 {[%clk 0:02:28.6]} 30. Rf3 {[%clk 0:03:18.3]} 30...
Re2 {[%clk 0:02:21]} 31. Rf2 {[%clk 0:03:07.6]} 31... Rxf2 {[%clk 0:02:11.3]}
32. Qxf2 {[%clk 0:03:07.5]} 32... Kg7 {[%clk 0:02:01.7]} 33. d5+ {[%clk
0:03:05.9]} 33... Kh6 {[%clk 0:02:00.5]} 34. dxc6 {[%clk 0:03:03.3]} 34... bxc6
{[%clk 0:01:58.5]} 35. Qc2 {[%clk 0:02:56.2]} 35... Bc5+ {[%clk 0:01:55]} 36.
Kh1 {[%clk 0:02:54.5]} 36... Qf4 {[%clk 0:01:48.5]} 37. Bc1 {[%clk 0:02:54.4]}
1-0

[Event "Live Chess"]
[Site "Chess.com"]
[Date "2024.06.02"]
[Round "-"]
[White "BishopofWells"]
[Black "Queensandpawns"]
[Result "0-1"]
[WhiteElo "1536"]
[BlackElo "2280"]
[TimeControl "300"]
[EndTime "5:32:11 PDT"]
[Termination "Queensandpawns won by checkmate"]

1. d4 {[%clk 0:04:56.4]} 1... e5 {[%clk 0:04:58.5]} 2. d5 {[%clk 0:04:54.6]}
2... Bc5 {[%clk 0:04:57.9]} 3. c4 {[%clk 0:04:53.4]} 3... d6 {[%clk 0:04:57.4]}
4. e4 {[%clk 0:04:51.7]} 4... f5 {[%clk 0:04:55.9]} 5. Nc3 {[%clk 0:04:40.2]}
5... Nf6 {[%clk 0:04:53.6]} 6. Bd3 {[%clk 0:04:30.7]} 6... O-O {[%clk
0:04:51.4]} 7. h3 {[%clk 0:04:27.7]} 7... fxe4 {[%clk 0:04:36.9]} 8. Nxe4 {[%clk
0:04:19.9]} 8... Nxe4 {[%clk 0:04:35.5]} 9. Bxe4 {[%clk 0:04:19.1]} 9... Qh4
{[%clk 0:04:35.4]} 10. Qe2 {[%clk 0:04:14.8]} 10... Rxf2 {[%clk 0:04:33]} 11.
Qd3 {[%clk 0:04:02.9]} 11... Rf1+ {[%clk 0:04:24.4]} 12. Kd2 {[%clk 0:03:42.5]}
12... Qe1+ {[%clk 0:04:15]} 13. Kc2 {[%clk 0:03:38.5]} 13... Rf2+ {[%clk
0:04:13.7]} 14. Kb3 {[%clk 0:03:26.1]} 14... Qb4# {[%clk 0:04:07.9]} 0-1

[Event "Live Chess"]
[Site "Chess.com"]
[Date "2024.06.02"]
[Round "-"]
[White "matt1979"]
[Black "bobby_jamesFischer86"]
[Result "0-1"]
[WhiteElo "1405"]
[BlackElo "1629"]
[TimeControl "300"]
[EndTime "5:32:22 PDT"]
[Termination "bobby_jamesFischer86 won by resignation"]

1. f4 {[%clk 0:04:58.6]} 1... d5 {[%clk 0:04:58.1]} 2. e3 {[%clk 0:04:57.2]}
2... c5 {[%clk 0:04:57.5]} 3. Nf3 {[%clk 0:04:56.4]} 3... Nf6 {[%clk 0:04:56.3]}
4. b3 {[%clk 0:04:53.3]} 4... g6 {[%clk 0:04:55.9]} 5. Bb2 {[%clk 0:04:52.3]}
5... Bg7 {[%clk 0:04:55.5]} 6. Bb5+ {[%clk 0:04:50.9]} 6... Bd7 {[%clk
0:04:53.4]} 7. Bxd7+ {[%clk 0:04:49.6]} 7... Nbxd7 {[%clk 0:04:53]} 8. O-O
{[%clk 0:04:48.2]} 8... O-O {[%clk 0:04:52.5]} 9. d3 {[%clk 0:04:46.9]} 9... Ng4
{[%clk 0:04:48.9]} 10. Bxg7 {[%clk 0:04:40.2]} 10... Nxe3 {[%clk 0:04:47.2]} 11.
Qd2 {[%clk 0:04:34.6]} 11... Nxf1 {[%clk 0:04:46]} 12. Kxf1 {[%clk 0:04:33.9]}
12... Kxg7 {[%clk 0:04:44.7]} 13. Nc3 {[%clk 0:04:27.1]} 13... e6 {[%clk
0:04:40.6]} 14. Kg1 {[%clk 0:04:21.1]} 14... a6 {[%clk 0:04:31.2]} 15. Ne5
{[%clk 0:04:20]} 15... Nxe5 {[%clk 0:04:29.6]} 16. fxe5 {[%clk 0:04:19.1]} 16...
f6 {[%clk 0:04:26.7]} 17. exf6+ {[%clk 0:04:16.1]} 17... Qxf6 {[%clk 0:04:25.4]}
18. Re1 {[%clk 0:04:03.4]} 18... Rf7 {[%clk 0:04:23.9]} 19. Nd1 {[%clk
0:03:49.1]} 19... Raf8 {[%clk 0:04:21.3]} 20. Qe2 {[%clk 0:03:39.2]} 20... b5
{[%clk 0:04:12.4]} 21. Ne3 {[%clk 0:03:34.8]} 21... d4 {[%clk 0:04:09.7]} 22.
Ng4 {[%clk 0:03:32.7]} 22... Qe7 {[%clk 0:03:52.2]} 23. Ne5 {[%clk 0:03:23.9]}
23... Rf2 {[%clk 0:03:47.5]} 24. Qxf2 {[%clk 0:03:19.2]} 24... Rxf2 {[%clk
0:03:45.4]} 25. Kxf2 {[%clk 0:03:18.5]} 25... Qh4+ {[%clk 0:03:43.1]} 26. Kf3
{[%clk 0:02:55.6]} 26... Qxh2 {[%clk 0:03:35.9]} 27. Ng4 {[%clk 0:02:50.5]}
27... Qd6 {[%clk 0:03:29]} 28. Re5 {[%clk 0:02:41.2]} 28... h5 {[%clk
0:03:24.3]} 29. Rg5 {[%clk 0:02:28.6]} 29... hxg4+ {[%clk 0:03:19.3]} 30. Rxg4
{[%clk 0:02:27.7]} 30... Qd5+ {[%clk 0:03:16.2]} 31. Kg3 {[%clk 0:02:24.1]}
31... c4 {[%clk 0:03:15.1]} 32. dxc4 {[%clk 0:02:22.6]} 32... bxc4 {[%clk
0:03:13.7]} 33. bxc4 {[%clk 0:02:21.4]} 33... Qxc4 {[%clk 0:03:12.6]} 34. Re4
{[%clk 0:02:11.5]} 34... Qxc2 {[%clk 0:03:06.9]} 35. Rxe6 {[%clk 0:02:07.7]}
35... Qd3+ {[%clk 0:03:05.5]} 36. Kg4 {[%clk 0:02:06.2]} 36... Qf5+ {[%clk
0:03:03.6]} 0-1

[Event "Live Chess"]
[Site "Chess.com"]
[Date "2024.06.02"]
[Round "-"]
[White "ameetghasi100"]
[Black "ProfessorChess101"]
[Result "0-1"]
[WhiteElo "2757"]
[BlackElo "2738"]
[TimeControl "300"]
[EndTime "5:32:49 PDT"]
[Termination "ProfessorChess101 won by checkmate"]

1. b3 {[%clk 0:04:59.7]} 1... e5 {[%clk 0:04:58]} 2. Bb2 {[%clk 0:04:59.3]} 2...
Nc6 {[%clk 0:04:56.9]} 3. e3 {[%clk 0:04:59]} 3... a6 {[%clk 0:04:48.5]} 4. a3
{[%clk 0:04:58.7]} 4... Nf6 {[%clk 0:04:45.6]} 5. Nf3 {[%clk 0:04:57.8]} 5... d6
{[%clk 0:04:42.8]} 6. d4 {[%clk 0:04:56.7]} 6... exd4 {[%clk 0:04:39.8]} 7. Nxd4
{[%clk 0:04:56.1]} 7... Nxd4 {[%clk 0:04:37.1]} 8. Qxd4 {[%clk 0:04:55.7]} 8...
Be7 {[%clk 0:04:35.6]} 9. Nc3 {[%clk 0:04:54]} 9... Be6 {[%clk 0:04:33.9]} 10.
Be2 {[%clk 0:04:50.7]} 10... O-O {[%clk 0:04:31.9]} 11. g4 {[%clk 0:04:47.4]}
11... c5 {[%clk 0:04:25.1]} 12. Qf4 {[%clk 0:04:45.5]} 12... d5 {[%clk
0:04:20.5]} 13. g5 {[%clk 0:04:42.8]} 13... Ne8 {[%clk 0:04:18.5]} 14. Rg1
{[%clk 0:04:27.1]} 14... b5 {[%clk 0:04:10.8]} 15. Rd1 {[%clk 0:04:18.4]} 15...
Qa5 {[%clk 0:04:05.1]} 16. Kf1 {[%clk 0:04:15.1]} 16... Bh3+ {[%clk 0:04:00.4]}
17. Ke1 {[%clk 0:04:14.1]} 17... Rd8 {[%clk 0:03:50.6]} 18. Qh4 {[%clk
0:03:50.9]} 18... Bf5 {[%clk 0:03:44.3]} 19. Rd2 {[%clk 0:03:24.1]} 19... Nc7
{[%clk 0:03:21.3]} 20. Qf4 {[%clk 0:03:20.8]} 20... Bg6 {[%clk 0:03:15.3]} 21.
h4 {[%clk 0:03:17.9]} 21... Ne6 {[%clk 0:03:08.5]} 22. Qg4 {[%clk 0:03:16.5]}
22... d4 {[%clk 0:03:05.4]} 23. exd4 {[%clk 0:02:57.6]} 23... Rxd4 {[%clk
0:03:02.3]} 24. Rxd4 {[%clk 0:01:57.3]} 24... cxd4 {[%clk 0:03:00.9]} 25. b4
{[%clk 0:01:56.2]} 25... Bxb4 {[%clk 0:02:04.7]} 26. axb4 {[%clk 0:01:55.1]}
26... Qxb4 {[%clk 0:02:04.1]} 27. Ba1 {[%clk 0:01:54.2]} 27... Qa3 {[%clk
0:01:55.4]} 28. Nd1 {[%clk 0:01:16.8]} 28... Qxa1 {[%clk 0:01:50.8]} 29. h5
{[%clk 0:01:16.2]} 29... Bxc2 {[%clk 0:01:48.9]} 30. g6 {[%clk 0:01:14.7]} 30...
hxg6 {[%clk 0:01:41.8]} 31. hxg6 {[%clk 0:01:13.3]} 31... Bxg6 {[%clk 0:01:41]}
32. Qh4 {[%clk 0:01:09.8]} 32... Qa5+ {[%clk 0:01:17.3]} 33. Kf1 {[%clk
0:01:08.9]} 33... Qd8 {[%clk 0:01:06.4]} 34. Qh3 {[%clk 0:01:08.3]} 34... Nf4
{[%clk 0:00:48]} 35. Qh2 {[%clk 0:01:05.2]} 35... Nxe2 {[%clk 0:00:30.4]} 36.
Kxe2 {[%clk 0:01:01.3]} 36... Re8+ {[%clk 0:00:27.8]} 37. Kf1 {[%clk 0:01:00.6]}
37... Bd3+ {[%clk 0:00:25.7]} 38. Kg2 {[%clk 0:00:59.4]} 38... Qg5+ {[%clk
0:00:24.3]} 39. Qg3 {[%clk 0:00:58.4]} 39... Be4+ {[%clk 0:00:22.3]} 40. f3
{[%clk 0:00:57.7]} 40... Qxg3+ {[%clk 0:00:20.7]} 41. Kxg3 {[%clk 0:00:57.3]}
41... Bg6 {[%clk 0:00:20.6]} 42. Nf2 {[%clk 0:00:57.2]} 42... d3 {[%clk
0:00:18.9]} 43. Kf4 {[%clk 0:00:56.3]} 43... Re2 {[%clk 0:00:18]} 44. Ng4 {[%clk
0:00:55.7]} 44... d2 {[%clk 0:00:15.9]} 45. Ne3 {[%clk 0:00:54.6]} 45... Re1
{[%clk 0:00:14.8]} 46. Rg2 {[%clk 0:00:54.1]} 46... Rxe3 {[%clk 0:00:13.9]} 47.
Rxd2 {[%clk 0:00:53.7]} 47... Re6 {[%clk 0:00:13.6]} 48. Rd8+ {[%clk 0:00:51.9]}
48... Kh7 {[%clk 0:00:13]} 49. Rd3 {[%clk 0:00:51.1]} 49... Rf6+ {[%clk
0:00:12.9]} 50. Kg5 {[%clk 0:00:49.9]} 50... Bxd3 {[%clk 0:00:12.8]} 51. f4
{[%clk 0:00:49.7]} 51... Rf5+ {[%clk 0:00:11.7]} 52. Kg4 {[%clk 0:00:49.3]}
52... a5 {[%clk 0:00:11.3]} 53. Kg3 {[%clk 0:00:48.9]} 53... a4 {[%clk 0:00:11]}
54. Kg4 {[%clk 0:00:48.6]} 54... a3 {[%clk 0:00:10.7]} 55. Kf3 {[%clk
0:00:48.3]} 55... a2 {[%clk 0:00:10.3]} 56. Ke3 {[%clk 0:00:48.1]} 56... a1=Q
{[%clk 0:00:09.9]} 57. Kf3 {[%clk 0:00:47.4]} 57... Qf1+ {[%clk 0:00:08.9]} 58.
Kg4 {[%clk 0:00:47]} 58... Qxf4+ {[%clk 0:00:08.4]} 59. Kh3 {[%clk 0:00:46]}
59... Rh5+ {[%clk 0:00:08]} 60. Kg2 {[%clk 0:00:45.3]} 60... Rh2+ {[%clk
0:00:07.7]} 61. Kg1 {[%clk 0:00:44.8]} 61... Qf2# {[%clk 0:00:07.3]} 0-1

[Event "Live Chess"]
[Site "Chess.com"]
[Date "2024.06.02"]
[Round "-"]
[White "halfberg"]
[Black "LL220284LL"]
[Result "0-1"]
[WhiteElo "1882"]
[BlackElo "2500"]
[TimeControl "300"]
[EndTime "5:32:51 PDT"]
[Termination "LL220284LL won by resignation"]

1. e4 {[%clk 0:04:56.1]} 1... d6 {[%clk 0:04:58.2]} 2. d4 {[%clk 0:04:52.8]}
2... g6 {[%clk 0:04:56.7]} 3. Nc3 {[%clk 0:04:50.8]} 3... Bg7 {[%clk 0:04:56.1]}
4. f4 {[%clk 0:04:48.4]} 4... c6 {[%clk 0:04:54.3]} 5. Nf3 {[%clk 0:04:47.3]}
5... Nf6 {[%clk 0:04:53.1]} 6. Bd3 {[%clk 0:04:45.2]} 6... b5 {[%clk 0:04:49]}
7. a3 {[%clk 0:04:41.7]} 7... a6 {[%clk 0:04:46.1]} 8. O-O {[%clk 0:04:40.5]}
8... Bb7 {[%clk 0:04:45.1]} 9. Kh1 {[%clk 0:04:39.6]} 9... O-O {[%clk
0:04:43.9]} 10. e5 {[%clk 0:04:32.6]} 10... Nd5 {[%clk 0:04:40.6]} 11. Nxd5
{[%clk 0:04:29.1]} 11... cxd5 {[%clk 0:04:40.5]} 12. c3 {[%clk 0:04:24.7]} 12...
Nc6 {[%clk 0:04:36.5]} 13. Qe2 {[%clk 0:04:06.1]} 13... Rc8 {[%clk 0:04:32.5]}
14. e6 {[%clk 0:04:00.1]} 14... f5 {[%clk 0:04:26.5]} 15. Ng5 {[%clk 0:03:57.1]}
15... Qb6 {[%clk 0:04:11.9]} 16. Be3 {[%clk 0:03:51.1]} 16... Na5 {[%clk
0:04:06.5]} 17. Qf2 {[%clk 0:03:39.1]} 17... Nb3 {[%clk 0:03:57.9]} 18. Rae1
{[%clk 0:03:35.1]} 18... Bf6 {[%clk 0:03:50.8]} 19. Qg3 {[%clk 0:03:22.2]} 19...
a5 {[%clk 0:03:47.2]} 20. Bxf5 {[%clk 0:03:10.3]} 20... gxf5 {[%clk 0:03:40.3]}
21. Nf7+ {[%clk 0:02:53.4]} 21... Bg7 {[%clk 0:03:38.7]} 22. Nh6+ {[%clk
0:02:38.7]} 22... Kh8 {[%clk 0:03:35.4]} 23. Nf7+ {[%clk 0:02:37.7]} 23... Rxf7
{[%clk 0:03:31.4]} 24. exf7 {[%clk 0:02:36.4]} 24... Rf8 {[%clk 0:03:28.2]} 25.
Bg1 {[%clk 0:02:16.4]} 25... Rxf7 {[%clk 0:03:25]} 26. Qg5 {[%clk 0:02:13.2]}
26... Qd8 {[%clk 0:03:21.3]} 27. Rf3 {[%clk 0:02:12.1]} 27... Nd2 {[%clk
0:03:16]} 28. Rfe3 {[%clk 0:02:10.3]} 28... Ne4 {[%clk 0:03:14.8]} 29. Rh3
{[%clk 0:02:04.8]} 29... Nxg5 {[%clk 0:03:13.4]} 30. fxg5 {[%clk 0:02:03.2]}
30... Kg8 {[%clk 0:03:12]} 0-1

[Event "Live Chess"]
[Site "Chess.com"]
[Date "2024.06.02"]
[Round "-"]
[White "FlyingChessKestrel13"]
[Black "alicechristina"]
[Result "1/2-1/2"]
[WhiteElo "2082"]
[BlackElo "1916"]
[TimeControl "300"]
[EndTime "5:33:01 PDT"]
[Termination "Game drawn by repetition"]

1. e4 {[%clk 0:04:55]} 1... e5 {[%clk 0:04:58.5]} 2. Nf3 {[%clk 0:04:51.8]} 2...
Nf6 {[%clk 0:04:57.5]} 3. d3 {[%clk 0:04:48.5]} 3... Nc6 {[%clk 0:04:55.3]} 4.
Nc3 {[%clk 0:04:46.7]} 4... d5 {[%clk 0:04:53.2]} 5. Be2 {[%clk 0:04:45.1]} 5...
d4 {[%clk 0:04:51.9]} 6. Nb1 {[%clk 0:04:43.8]} 6... Be7 {[%clk 0:04:48.8]} 7.
Nbd2 {[%clk 0:04:42.9]} 7... O-O {[%clk 0:04:47.1]} 8. O-O {[%clk 0:04:42.3]}
8... Bg4 {[%clk 0:04:44.1]} 9. Nxd4 {[%clk 0:04:34.5]} 9... Nxd4 {[%clk
0:04:38.9]} 10. Bxg4 {[%clk 0:04:33.4]} 10... Nxg4 {[%clk 0:04:38.2]} 11. c3
{[%clk 0:04:26.4]} 11... Nxf2 {[%clk 0:04:31.6]} 12. Rxf2 {[%clk 0:04:23.8]}
12... Ne6 {[%clk 0:04:28.7]} 13. Nf3 {[%clk 0:04:20.2]} 13... Bc5 {[%clk
0:04:18]} 14. Nxe5 {[%clk 0:04:13.9]} 14... Bxf2+ {[%clk 0:04:16.1]} 15. Kxf2
{[%clk 0:04:12.1]} 15... Qh4+ {[%clk 0:04:12.5]} 16. Kg1 {[%clk 0:04:10.7]}
16... Rad8 {[%clk 0:04:04.6]} 17. Nf3 {[%clk 0:04:07.3]} 17... Qh5 {[%clk
0:03:59.6]} 18. Be3 {[%clk 0:04:03.3]} 18... Rd7 {[%clk 0:03:54.6]} 19. d4
{[%clk 0:04:01.2]} 19... Rfd8 {[%clk 0:03:47.7]} 20. Qe2 {[%clk 0:03:53.7]}
20... Qg6 {[%clk 0:03:45.5]} 21. Ne5 {[%clk 0:03:47.9]} 21... Qxe4 {[%clk
0:03:41.5]} 22. Nxd7 {[%clk 0:03:46.6]} 22... Rxd7 {[%clk 0:03:40.6]} 23. Rf1
{[%clk 0:03:43.6]} 23... Re7 {[%clk 0:03:33.6]} 24. Qf3 {[%clk 0:03:41.8]} 24...
Qxf3 {[%clk 0:03:27.7]} 25. Rxf3 {[%clk 0:03:40.5]} 25... f6 {[%clk 0:03:21.1]}
26. Bf4 {[%clk 0:03:37.6]} 26... Nxf4 {[%clk 0:03:17.7]} 27. Rxf4 {[%clk
0:03:36.7]} 27... Re2 {[%clk 0:03:16.5]} 28. Rf2 {[%clk 0:03:35.7]} 28... Re1+
{[%clk 0:03:15.4]} 29. Rf1 {[%clk 0:03:34.9]} 29... Re2 {[%clk 0:03:14.4]} 30.
Rf2 {[%clk 0:03:33.9]} 30... Re1+ {[%clk 0:03:13.5]} 31. Rf1 {[%clk 0:03:33.2]}
31... Re2 {[%clk 0:03:13]} 32. Rf2 {[%clk 0:03:31.8]} 1/2-1/2